[Event "Live Chess"]
[Site "Chess.com"]
[Date "2023.05.20"]
[Round "-"]
[White "VovaOvchar1990"]
[Black "Pablo_dmp"]
[Result "1/2-1/2"]
[WhiteElo "1202"]
[BlackElo "1856"]
[TimeControl "300"]
[EndTime "11:24:01 PDT"]
[Termination "Game drawn - insufficient material"]

1. e4 {[%clk 0:04:55.7]} 1... c6 {[%clk 0:04:56.1]} 2. Bc4 {[%clk 0:04:53.7]}
2... d5 {[%clk 0:04:55.1]} 3. exd5 {[%clk 0:04:52.3]} 3... cxd5 {[%clk 0:04:55]}
4. Bb5+ {[%clk 0:04:52.1]} 4... Bd7 {[%clk 0:04:52.9]} 5. Bxd7+ {[%clk
0:04:50.7]} 5... Qxd7 {[%clk 0:04:52.8]} 6. Nf3 {[%clk 0:04:49.9]} 6... Nf6
{[%clk 0:04:51.8]} 7. O-O {[%clk 0:04:48.7]} 7... Nc6 {[%clk 0:04:50.3]} 8. h3
{[%clk 0:04:47.8]} 8... e5 {[%clk 0:04:49.1]} 9. d3 {[%clk 0:04:46.6]} 9... Bd6
{[%clk 0:04:47.3]} 10. Re1 {[%clk 0:04:45.4]} 10... O-O {[%clk 0:04:46.3]} 11.
Bg5 {[%clk 0:04:41.6]} 11... Ne8 {[%clk 0:04:35.6]} 12. Nc3 {[%clk 0:04:38.6]}
12... Qe6 {[%clk 0:04:30.6]} 13. Bh4 {[%clk 0:04:25.4]} 13... f5 {[%clk
0:04:23.5]} 14. Ng5 {[%clk 0:04:19.2]} 14... Qh6 {[%clk 0:04:15.9]} 15. Nf3
{[%clk 0:03:53.6]} 15... e4 {[%clk 0:04:12.3]} 16. dxe4 {[%clk 0:03:42.4]} 16...
dxe4 {[%clk 0:04:12.2]} 17. Nxe4 {[%clk 0:03:37.2]} 17... fxe4 {[%clk
0:04:11.2]} 18. Rxe4 {[%clk 0:03:36.4]} 18... Nf6 {[%clk 0:03:58.6]} 19. Qxd6
{[%clk 0:03:12.4]} 19... Nxe4 {[%clk 0:03:57.3]} 20. Qd5+ {[%clk 0:03:10.9]}
20... Kh8 {[%clk 0:03:54]} 21. Qxe4 {[%clk 0:03:09.5]} 21... Rxf3 {[%clk
0:03:49.5]} 22. gxf3 {[%clk 0:03:01.7]} 22... g5 {[%clk 0:03:40.4]} 23. Bg3
{[%clk 0:02:51.7]} 23... Qxh3 {[%clk 0:03:24.5]} 24. Be5+ {[%clk 0:02:28.4]}
24... Nxe5 {[%clk 0:03:23]} 25. Qxe5+ {[%clk 0:02:26.9]} 25... Kg8 {[%clk
0:03:21.8]} 26. Qxg5+ {[%clk 0:02:20.5]} 26... Kf7 {[%clk 0:03:18]} 27. Re1
{[%clk 0:02:13.1]} 27... Rg8 {[%clk 0:03:09]} 28. Re7+ {[%clk 0:02:02.8]} 28...
Kf8 {[%clk 0:03:07.7]} 29. Re8+ {[%clk 0:01:43.8]} 29... Kxe8 {[%clk 0:03:07.3]}
30. Qxg8+ {[%clk 0:01:43]} 30... Kd7 {[%clk 0:03:04.8]} 31. Qg4+ {[%clk
0:01:31.6]} 31... Qxg4+ {[%clk 0:03:04]} 32. fxg4 {[%clk 0:01:30.8]} 32... Ke6
{[%clk 0:03:00.7]} 33. Kg2 {[%clk 0:01:29.6]} 33... Ke5 {[%clk 0:02:58.6]} 34.
Kf3 {[%clk 0:01:28.3]} 34... h6 {[%clk 0:02:54.4]} 35. Ke3 {[%clk 0:01:25.6]}
35... b5 {[%clk 0:02:49.8]} 36. f4+ {[%clk 0:01:24.6]} 36... Kd5 {[%clk
0:02:48.9]} 37. g5 {[%clk 0:01:21.5]} 37... h5 {[%clk 0:02:43.5]} 38. g6 {[%clk
0:01:20.1]} 38... Ke6 {[%clk 0:02:42.1]} 39. g7 {[%clk 0:01:13.8]} 39... Kf7
{[%clk 0:02:40.7]} 40. Kf3 {[%clk 0:01:11.5]} 40... Kxg7 {[%clk 0:02:38.8]} 41.
Kg3 {[%clk 0:01:10.2]} 41... Kg6 {[%clk 0:02:33.8]} 42. Kh4 {[%clk 0:01:08.5]}
42... Kf5 {[%clk 0:02:32.9]} 43. Kxh5 {[%clk 0:01:06.4]} 43... Kxf4 {[%clk
0:02:32.2]} 44. Kg6 {[%clk 0:01:05.5]} 44... Ke3 {[%clk 0:02:31.2]} 45. Kf5
{[%clk 0:01:02.3]} 45... Kd2 {[%clk 0:02:30.4]} 46. Ke4 {[%clk 0:00:51.8]} 46...
Kxc2 {[%clk 0:02:29.1]} 47. Kd4 {[%clk 0:00:51.1]} 47... Kxb2 {[%clk 0:02:28.2]}
48. Kc5 {[%clk 0:00:50.6]} 48... Kxa2 {[%clk 0:02:10.3]} 49. Kxb5 {[%clk
0:00:48.4]} 49... Kb3 {[%clk 0:02:08]} 50. Ka6 {[%clk 0:00:48.2]} 50... Kb4
{[%clk 0:02:06.6]} 51. Kxa7 {[%clk 0:00:46.2]} 1/2-1/2

[Event "Live Chess"]
[Site "Chess.com"]
[Date "2023.05.20"]
[Round "-"]
[White "risinghelios"]
[Black "onemoretime1975"]
[Result "0-1"]
[WhiteElo "1938"]
[BlackElo "1924"]
[TimeControl "300"]
[EndTime "11:24:03 PDT"]
[Termination "onemoretime1975 won by resignation"]

1. e4 {[%clk 0:04:58.2]} 1... e6 {[%clk 0:04:57.4]} 2. d4 {[%clk 0:04:57.2]}
2... d5 {[%clk 0:04:55.4]} 3. e5 {[%clk 0:04:57.1]} 3... c5 {[%clk 0:04:53.3]}
4. c3 {[%clk 0:04:57]} 4... Nc6 {[%clk 0:04:52]} 5. Nf3 {[%clk 0:04:56.7]} 5...
Bd7 {[%clk 0:04:50]} 6. Be2 {[%clk 0:04:55.3]} 6... Qb6 {[%clk 0:04:47.6]} 7.
O-O {[%clk 0:04:54.8]} 7... a6 {[%clk 0:04:42]} 8. a3 {[%clk 0:04:54.4]} 8...
Nge7 {[%clk 0:04:37.9]} 9. b4 {[%clk 0:04:53]} 9... cxd4 {[%clk 0:04:35.2]} 10.
cxd4 {[%clk 0:04:52.4]} 10... Nf5 {[%clk 0:04:33.1]} 11. Bb2 {[%clk 0:04:50.9]}
11... Nce7 {[%clk 0:04:25.6]} 12. Nbd2 {[%clk 0:04:50.2]} 12... Bb5 {[%clk
0:04:23.5]} 13. Nb3 {[%clk 0:04:48.7]} 13... Bxe2 {[%clk 0:04:20.9]} 14. Qxe2
{[%clk 0:04:48.6]} 14... Nc6 {[%clk 0:04:15]} 15. Nc5 {[%clk 0:04:46.4]} 15...
Bxc5 {[%clk 0:03:20.1]} 16. dxc5 {[%clk 0:04:46.3]} 16... Qb5 {[%clk 0:03:09.7]}
17. Qxb5 {[%clk 0:04:43.7]} 17... axb5 {[%clk 0:03:08]} 18. g4 {[%clk
0:04:37.7]} 18... Nfe7 {[%clk 0:03:02.6]} 19. h3 {[%clk 0:04:32.5]} 19... h5
{[%clk 0:02:57.1]} 20. Kg2 {[%clk 0:04:29.6]} 20... hxg4 {[%clk 0:02:46.2]} 21.
hxg4 {[%clk 0:04:29.5]} 21... Ng6 {[%clk 0:02:44.9]} 22. Kg3 {[%clk 0:04:27.1]}
22... Ke7 {[%clk 0:02:33.9]} 23. Rh1 {[%clk 0:04:24.9]} 23... Rxh1 {[%clk
0:02:27.6]} 24. Rxh1 {[%clk 0:04:24.8]} 24... Rh8 {[%clk 0:02:25.4]} 25. Rxh8
{[%clk 0:04:23.2]} 25... Nxh8 {[%clk 0:02:24.4]} 26. Nd4 {[%clk 0:04:22.9]}
26... Nxd4 {[%clk 0:02:21.9]} 27. Bxd4 {[%clk 0:04:22]} 27... Ng6 {[%clk
0:02:15.3]} 28. f4 {[%clk 0:04:20.6]} 28... Nf8 {[%clk 0:02:12.9]} 29. f5 {[%clk
0:04:19.3]} 29... g6 {[%clk 0:02:10.8]} 30. f6+ {[%clk 0:04:17.7]} 30... Kd7
{[%clk 0:01:56.1]} 31. Kf4 {[%clk 0:04:16.7]} 31... Nh7 {[%clk 0:01:52.6]} 32.
g5 {[%clk 0:04:08.2]} 32... Kc6 {[%clk 0:01:49.2]} 33. Bb2 {[%clk 0:04:04.2]}
33... Nf8 {[%clk 0:01:46.5]} 34. Ke3 {[%clk 0:04:02.2]} 34... Nd7 {[%clk
0:01:44.4]} 35. Kd4 {[%clk 0:04:00.1]} 35... b6 {[%clk 0:01:37.4]} 36. Bc1
{[%clk 0:03:57]} 36... bxc5+ {[%clk 0:01:35]} 37. bxc5 {[%clk 0:03:56.9]} 37...
Nxc5 {[%clk 0:01:33.3]} 38. Bd2 {[%clk 0:03:48.8]} 38... Nb3+ {[%clk 0:01:27.6]}
39. Kc3 {[%clk 0:03:47.9]} 39... Nxd2 {[%clk 0:01:26.2]} 40. Kxd2 {[%clk
0:03:47.8]} 40... Kc5 {[%clk 0:01:25.3]} 41. Kc3 {[%clk 0:03:47.4]} 41... d4+
{[%clk 0:01:23.5]} 42. Kd3 {[%clk 0:03:46.9]} 42... Kd5 {[%clk 0:01:21.9]} 43.
a4 {[%clk 0:03:45.7]} 43... bxa4 {[%clk 0:01:20.3]} 0-1

[Event "Live Chess"]
[Site "Chess.com"]
[Date "2023.05.20"]
[Round "-"]
[White "Ferrarifan27"]
[Black "OceanFloater"]
[Result "1-0"]
[WhiteElo "2103"]
[BlackElo "960"]
[TimeControl "300"]
[EndTime "11:24:05 PDT"]
[Termination "Ferrarifan27 won by checkmate"]

1. e4 {[%clk 0:04:56.3]} 1... c6 {[%clk 0:04:59.6]} 2. d4 {[%clk 0:04:54.9]}
2... d5 {[%clk 0:04:58]} 3. e5 {[%clk 0:04:54.2]} 3... e6 {[%clk 0:04:54.1]} 4.
Nf3 {[%clk 0:04:51.8]} 4... f6 {[%clk 0:04:48.9]} 5. exf6 {[%clk 0:04:49.6]}
5... Qxf6 {[%clk 0:04:47.6]} 6. Bg5 {[%clk 0:04:48.4]} 6... Qg6 {[%clk
0:04:40.3]} 7. Bd3 {[%clk 0:04:47]} 7... Qf7 {[%clk 0:04:37.2]} 8. Ne5 {[%clk
0:04:42.3]} 8... Qxf2+ {[%clk 0:04:32.1]} 9. Kxf2 {[%clk 0:04:40.5]} 9... h6
{[%clk 0:04:30.8]} 10. Qh5+ {[%clk 0:04:38.1]} 10... g6 {[%clk 0:04:19.2]} 11.
Bxg6# {[%clk 0:04:37.7]} 1-0

[Event "Live Chess"]
[Site "Chess.com"]
[Date "2023.05.20"]
[Round "-"]
[White "ameetghasi100"]
[Black "KeithArkell"]
[Result "0-1"]
[WhiteElo "2722"]
[BlackElo "2615"]
[TimeControl "300"]
[EndTime "11:24:06 PDT"]
[Termination "KeithArkell won by checkmate"]

1. e4 {[%clk 0:04:57.8]} 1... c6 {[%clk 0:04:59]} 2. Nc3 {[%clk 0:04:52.1]} 2...
d5 {[%clk 0:04:55.8]} 3. Nf3 {[%clk 0:04:51.3]} 3... Bg4 {[%clk 0:04:55]} 4. h3
{[%clk 0:04:49.8]} 4... Bxf3 {[%clk 0:04:54.3]} 5. Qxf3 {[%clk 0:04:49.4]} 5...
dxe4 {[%clk 0:04:53.8]} 6. Nxe4 {[%clk 0:04:47.9]} 6... Nd7 {[%clk 0:04:52.9]}
7. Bc4 {[%clk 0:04:46.7]} 7... Ne5 {[%clk 0:04:52]} 8. Qe2 {[%clk 0:04:45.8]}
8... Nxc4 {[%clk 0:04:51.2]} 9. Qxc4 {[%clk 0:04:45.5]} 9... e6 {[%clk
0:04:50.3]} 10. Qe2 {[%clk 0:04:44.4]} 10... Be7 {[%clk 0:04:49.6]} 11. O-O
{[%clk 0:04:42.1]} 11... Nf6 {[%clk 0:04:48.8]} 12. d3 {[%clk 0:04:38.7]} 12...
O-O {[%clk 0:04:39.1]} 13. Bd2 {[%clk 0:04:36.1]} 13... a5 {[%clk 0:04:37.2]}
14. Rad1 {[%clk 0:04:30.9]} 14... a4 {[%clk 0:04:34.5]} 15. Bc3 {[%clk
0:04:23.1]} 15... Nd5 {[%clk 0:04:31.9]} 16. Be5 {[%clk 0:04:21.5]} 16... Re8
{[%clk 0:04:22.9]} 17. c4 {[%clk 0:03:54.3]} 17... Nf6 {[%clk 0:04:14.4]} 18.
Nc3 {[%clk 0:03:47.8]} 18... Bd6 {[%clk 0:04:11.6]} 19. d4 {[%clk 0:03:46.1]}
19... Qe7 {[%clk 0:04:09.3]} 20. Qc2 {[%clk 0:03:14.8]} 20... a3 {[%clk
0:04:06.2]} 21. b3 {[%clk 0:03:12.5]} 21... Nd7 {[%clk 0:03:59.6]} 22. Bxd6
{[%clk 0:03:09.6]} 22... Qxd6 {[%clk 0:03:58.4]} 23. Ne4 {[%clk 0:03:09.5]}
23... Qe7 {[%clk 0:03:57.7]} 24. Rfe1 {[%clk 0:03:04.6]} 24... Nf6 {[%clk
0:03:56.6]} 25. Nc5 {[%clk 0:03:00.3]} 25... b6 {[%clk 0:03:53.6]} 26. Nd3
{[%clk 0:02:56.3]} 26... Red8 {[%clk 0:03:52.8]} 27. Ne5 {[%clk 0:02:49.8]}
27... Qc7 {[%clk 0:03:48.8]} 28. c5 {[%clk 0:02:48.8]} 28... bxc5 {[%clk
0:03:45.7]} 29. Qxc5 {[%clk 0:02:47.6]} 29... Ra6 {[%clk 0:03:42.1]} 30. Qc4
{[%clk 0:02:42.7]} 30... Qb7 {[%clk 0:03:32.2]} 31. Rc1 {[%clk 0:02:39.3]} 31...
Rd6 {[%clk 0:03:27.7]} 32. Rc3 {[%clk 0:02:13.4]} 32... h6 {[%clk 0:03:26.7]}
33. Rec1 {[%clk 0:02:11]} 33... Rd5 {[%clk 0:03:24.7]} 34. Nxc6 {[%clk
0:01:57.2]} 34... Rb6 {[%clk 0:03:12.6]} 35. Ne5 {[%clk 0:01:52.6]} 35... Rd8
{[%clk 0:03:02.5]} 36. Nf3 {[%clk 0:01:35.2]} 36... Nd5 {[%clk 0:03:00.4]} 37.
R3c2 {[%clk 0:01:23.8]} 37... Nb4 {[%clk 0:02:59.3]} 38. Rd2 {[%clk 0:01:23.3]}
38... Rc6 {[%clk 0:02:56]} 39. Qf1 {[%clk 0:01:22.9]} 39... Rdc8 {[%clk
0:02:51]} 40. Rc4 {[%clk 0:01:15.2]} 40... Qb5 {[%clk 0:02:30.9]} 41. Ne5 {[%clk
0:01:13.4]} 41... R6c7 {[%clk 0:02:23.8]} 42. Rxc7 {[%clk 0:01:11.1]} 42...
Qxf1+ {[%clk 0:02:22.4]} 43. Kxf1 {[%clk 0:01:10.2]} 43... Rxc7 {[%clk
0:02:21.8]} 44. Nc4 {[%clk 0:01:09.7]} 44... g5 {[%clk 0:02:16.5]} 45. Ke2
{[%clk 0:01:07.5]} 45... Kg7 {[%clk 0:02:15.1]} 46. g3 {[%clk 0:01:06.8]} 46...
h5 {[%clk 0:02:14.4]} 47. Kf3 {[%clk 0:01:01.2]} 47... f5 {[%clk 0:02:12.8]} 48.
Nxa3 {[%clk 0:00:59.8]} 48... Ra7 {[%clk 0:02:10.3]} 49. Nb5 {[%clk 0:00:59.1]}
49... Ra5 {[%clk 0:02:08.7]} 50. a4 {[%clk 0:00:57.3]} 50... Kf6 {[%clk
0:02:05.4]} 51. Nd6 {[%clk 0:00:55.5]} 51... Ra6 {[%clk 0:02:03]} 52. Nc4 {[%clk
0:00:54.6]} 52... Ra8 {[%clk 0:02:00.3]} 53. a5 {[%clk 0:00:50]} 53... Rb8
{[%clk 0:01:58.4]} 54. Ke2 {[%clk 0:00:48.3]} 54... Rh8 {[%clk 0:01:36]} 55. Rd1
{[%clk 0:00:45.3]} 55... h4 {[%clk 0:01:35]} 56. g4 {[%clk 0:00:43]} 56... fxg4
{[%clk 0:01:33.7]} 57. hxg4 {[%clk 0:00:42.9]} 57... Ra8 {[%clk 0:01:28.2]} 58.
Kf3 {[%clk 0:00:41.3]} 58... Nd5 {[%clk 0:01:27.2]} 59. Ra1 {[%clk 0:00:40.4]}
59... Nb4 {[%clk 0:01:19]} 60. Nb6 {[%clk 0:00:38.3]} 60... Ra7 {[%clk
0:01:14.7]} 61. Ke4 {[%clk 0:00:36.2]} 61... h3 {[%clk 0:01:12.9]} 62. Nc4
{[%clk 0:00:33.8]} 62... Nc6 {[%clk 0:01:08.6]} 63. Rh1 {[%clk 0:00:33.7]} 63...
Nxa5 {[%clk 0:01:07.3]} 64. Rxh3 {[%clk 0:00:30.6]} 64... Nc6 {[%clk 0:01:04.9]}
65. Rf3+ {[%clk 0:00:29.5]} 65... Ke7 {[%clk 0:01:03.1]} 66. Rc3 {[%clk
0:00:28.7]} 66... Nb4 {[%clk 0:01:01.4]} 67. Ne5 {[%clk 0:00:26.9]} 67... Kf6
{[%clk 0:00:57.4]} 68. Rf3+ {[%clk 0:00:24.4]} 68... Kg7 {[%clk 0:00:56.5]} 69.
Rh3 {[%clk 0:00:23.6]} 69... Nd5 {[%clk 0:00:54.6]} 70. Rh1 {[%clk 0:00:22.2]}
70... Rb7 {[%clk 0:00:51.1]} 71. Rh3 {[%clk 0:00:20]} 71... Rb8 {[%clk
0:00:48.3]} 72. Rd3 {[%clk 0:00:18.2]} 72... Rf8 {[%clk 0:00:46.8]} 73. Rf3
{[%clk 0:00:17.8]} 73... Rb8 {[%clk 0:00:45.6]} 74. Rf7+ {[%clk 0:00:16.5]}
74... Kg8 {[%clk 0:00:45.2]} 75. Ra7 {[%clk 0:00:14.8]} 75... Rxb3 {[%clk
0:00:43.3]} 76. Ng6 {[%clk 0:00:14.4]} 76... Rb2 {[%clk 0:00:40.9]} 77. Ke5
{[%clk 0:00:13.9]} 77... Re2+ {[%clk 0:00:38.4]} 78. Kd6 {[%clk 0:00:12.8]}
78... Re4 {[%clk 0:00:36.8]} 79. Ne5 {[%clk 0:00:11.4]} 79... Rxd4 {[%clk
0:00:31.8]} 80. Kxe6 {[%clk 0:00:11.3]} 80... Nf4+ {[%clk 0:00:31]} 81. Kf6
{[%clk 0:00:09.5]} 81... Nd3 {[%clk 0:00:23.9]} 82. Kxg5 {[%clk 0:00:09.4]}
82... Nxe5 {[%clk 0:00:22.6]} 83. f4 {[%clk 0:00:09.1]} 83... Nf7+ {[%clk
0:00:20.1]} 84. Kg6 {[%clk 0:00:08.4]} 84... Rd6+ {[%clk 0:00:19.5]} 85. Kh5
{[%clk 0:00:07.7]} 85... Rh6# {[%clk 0:00:18.2]} 0-1

[Event "Live Chess"]
[Site "Chess.com"]
[Date "2023.05.20"]
[Round "-"]
[White "CeladonFish"]
[Black "wot-not"]
[Result "0-1"]
[WhiteElo "1030"]
[BlackElo "1461"]
[TimeControl "300"]
[EndTime "11:24:13 PDT"]
[Termination "wot-not won by checkmate"]

1. d4 {[%clk 0:04:56]} 1... Nf6 {[%clk 0:04:58.6]} 2. c4 {[%clk 0:04:50.6]} 2...
c5 {[%clk 0:04:57.6]} 3. d5 {[%clk 0:04:46.6]} 3... d6 {[%clk 0:04:56.5]} 4. Nc3
{[%clk 0:04:36.8]} 4... e5 {[%clk 0:04:54.6]} 5. dxe6 {[%clk 0:04:33.1]} 5...
Bxe6 {[%clk 0:04:53]} 6. e3 {[%clk 0:04:29.7]} 6... d5 {[%clk 0:04:51.1]} 7.
Qa4+ {[%clk 0:04:25.9]} 7... Nc6 {[%clk 0:04:49.4]} 8. cxd5 {[%clk 0:04:20]}
8... Nxd5 {[%clk 0:04:45]} 9. Bc4 {[%clk 0:04:18.3]} 9... Nxc3 {[%clk
0:04:43.6]} 10. bxc3 {[%clk 0:04:09.1]} 10... Bxc4 {[%clk 0:04:42.2]} 11. Qxc4
{[%clk 0:04:08.4]} 11... Be7 {[%clk 0:04:40.3]} 12. Nf3 {[%clk 0:04:05.2]} 12...
O-O {[%clk 0:04:39]} 13. Bb2 {[%clk 0:04:04]} 13... b6 {[%clk 0:04:29.8]} 14.
Qg4 {[%clk 0:04:01.3]} 14... Bf6 {[%clk 0:04:24.4]} 15. e4 {[%clk 0:03:50.3]}
15... Ne5 {[%clk 0:04:01.8]} 16. Nxe5 {[%clk 0:03:40.5]} 16... Bxe5 {[%clk
0:03:59.7]} 17. f4 {[%clk 0:03:39.6]} 17... Bf6 {[%clk 0:03:23.4]} 18. e5 {[%clk
0:03:38]} 18... Bh4+ {[%clk 0:03:20.6]} 19. g3 {[%clk 0:03:36.7]} 19... Be7
{[%clk 0:03:19.6]} 20. c4 {[%clk 0:03:33.2]} 20... Qd3 {[%clk 0:03:05.7]} 21. e6
{[%clk 0:03:25.6]} 21... Qe3+ {[%clk 0:02:55.7]} 22. Kf1 {[%clk 0:03:17.6]}
22... f6 {[%clk 0:02:49.9]} 23. Re1 {[%clk 0:03:07.2]} 23... Qd3+ {[%clk
0:02:46]} 24. Qe2 {[%clk 0:03:04.4]} 24... Qxe2+ {[%clk 0:02:44.2]} 25. Rxe2
{[%clk 0:03:02.9]} 25... Rad8 {[%clk 0:02:43]} 26. Kf2 {[%clk 0:02:57]} 26...
Rd6 {[%clk 0:02:40.2]} 27. Bc3 {[%clk 0:02:49.4]} 27... Rfd8 {[%clk 0:02:37]}
28. Rhe1 {[%clk 0:02:46.7]} 28... Rd3 {[%clk 0:02:28.6]} 29. Bb2 {[%clk
0:02:30.1]} 29... Kf8 {[%clk 0:02:23.9]} 30. Re3 {[%clk 0:02:25.1]} 30... Rd2+
{[%clk 0:02:22.5]} 31. R1e2 {[%clk 0:02:24.5]} 31... Rxe2+ {[%clk 0:02:20.3]}
32. Kxe2 {[%clk 0:02:22.8]} 32... Rd6 {[%clk 0:02:17]} 33. f5 {[%clk 0:02:21.5]}
33... Ke8 {[%clk 0:02:09.2]} 34. Re4 {[%clk 0:02:20.7]} 34... Kd8 {[%clk
0:02:03.5]} 35. Rh4 {[%clk 0:02:19.5]} 35... h6 {[%clk 0:02:02.4]} 36. h3 {[%clk
0:02:14.9]} 36... a6 {[%clk 0:01:53.9]} 37. g4 {[%clk 0:02:13.4]} 37... b5
{[%clk 0:01:47.9]} 38. cxb5 {[%clk 0:02:12.1]} 38... axb5 {[%clk 0:01:46.9]} 39.
Rh5 {[%clk 0:02:09.4]} 39... c4 {[%clk 0:01:36.5]} 40. h4 {[%clk 0:02:08.1]}
40... Ra6 {[%clk 0:01:32.4]} 41. Kf3 {[%clk 0:01:39.6]} 41... Rxa2 {[%clk
0:01:28.8]} 42. Bd4 {[%clk 0:01:35]} 42... Ra3+ {[%clk 0:01:22.6]} 43. Ke4
{[%clk 0:01:34.1]} 43... c3 {[%clk 0:01:20.3]} 44. g5 {[%clk 0:01:33.2]} 44...
fxg5 {[%clk 0:01:15.1]} 45. hxg5 {[%clk 0:01:28.6]} 45... Bxg5 {[%clk
0:01:14.1]} 46. Bxg7 {[%clk 0:01:26.4]} 46... c2 {[%clk 0:01:12.4]} 47. Bb2
{[%clk 0:01:24.9]} 47... c1=Q {[%clk 0:01:05.1]} 48. Bxc1 {[%clk 0:01:23.8]}
48... Bxc1 {[%clk 0:01:04.3]} 49. f6 {[%clk 0:01:15.4]} 49... Bg5 {[%clk
0:00:59.2]} 50. Kf5 {[%clk 0:01:12.3]} 50... Rf3+ {[%clk 0:00:55.6]} 51. Kg6
{[%clk 0:01:11]} 51... Rxf6+ {[%clk 0:00:51.9]} 52. Kg7 {[%clk 0:01:10.2]} 52...
Rxe6 {[%clk 0:00:51.2]} 53. Rh1 {[%clk 0:01:05.4]} 53... b4 {[%clk 0:00:42.1]}
54. Rb1 {[%clk 0:01:03.9]} 54... Rb6 {[%clk 0:00:40.4]} 55. Ra1 {[%clk
0:01:03.1]} 55... Kd7 {[%clk 0:00:38.6]} 56. Ra7+ {[%clk 0:01:00.1]} 56... Kc6
{[%clk 0:00:38]} 57. Kg6 {[%clk 0:00:55.3]} 57... b3 {[%clk 0:00:35.2]} 58. Ra8
{[%clk 0:00:53.1]} 58... b2 {[%clk 0:00:34.2]} 59. Rc8+ {[%clk 0:00:52.3]} 59...
Kb5+ {[%clk 0:00:32.7]} 60. Kh5 {[%clk 0:00:49.5]} 60... b1=Q {[%clk 0:00:31.7]}
61. Rd8 {[%clk 0:00:48.8]} 61... Qh1+ {[%clk 0:00:26.2]} 62. Kg4 {[%clk
0:00:47.5]} 62... Qg2+ {[%clk 0:00:24.9]} 63. Kh5 {[%clk 0:00:46.4]} 63... Qh3#
{[%clk 0:00:23.3]} 0-1

[Event "Live Chess"]
[Site "Chess.com"]
[Date "2023.05.20"]
[Round "-"]
[White "Hacker_2009"]
[Black "lucaskk818"]
[Result "0-1"]
[WhiteElo "1927"]
[BlackElo "1895"]
[TimeControl "300"]
[EndTime "11:24:16 PDT"]
[Termination "lucaskk818 won by resignation"]

1. d4 {[%clk 0:04:53.2]} 1... e6 {[%clk 0:04:59.6]} 2. Nf3 {[%clk 0:04:49.7]}
2... d5 {[%clk 0:04:58.7]} 3. e3 {[%clk 0:04:48.9]} 3... Nf6 {[%clk 0:04:54.5]}
4. c4 {[%clk 0:04:45.4]} 4... c5 {[%clk 0:04:51.4]} 5. Nc3 {[%clk 0:04:44.1]}
5... Be7 {[%clk 0:04:40.6]} 6. cxd5 {[%clk 0:04:42.5]} 6... Nxd5 {[%clk
0:04:35.7]} 7. Be2 {[%clk 0:04:37.9]} 7... O-O {[%clk 0:04:29.1]} 8. O-O {[%clk
0:04:29.3]} 8... b6 {[%clk 0:04:23.4]} 9. Nxd5 {[%clk 0:04:27]} 9... Qxd5 {[%clk
0:04:20.2]} 10. b3 {[%clk 0:04:26.3]} 10... Ba6 {[%clk 0:04:15.4]} 11. Bxa6
{[%clk 0:04:22.4]} 11... Nxa6 {[%clk 0:04:15.3]} 12. Bb2 {[%clk 0:04:21.9]}
12... Bf6 {[%clk 0:04:10.8]} 13. Qe2 {[%clk 0:04:19.6]} 13... Nb4 {[%clk
0:04:06.3]} 14. a3 {[%clk 0:04:16.7]} 14... Nc6 {[%clk 0:04:04.2]} 15. Rfd1
{[%clk 0:04:15.6]} 15... cxd4 {[%clk 0:03:59]} 16. Nxd4 {[%clk 0:04:13.1]} 16...
Nxd4 {[%clk 0:03:58]} 17. Bxd4 {[%clk 0:04:11.5]} 17... Bxd4 {[%clk 0:03:57.4]}
18. Rxd4 {[%clk 0:04:10.5]} 18... Qxb3 {[%clk 0:03:53.9]} 19. Qd3 {[%clk
0:04:08]} 19... Qxd3 {[%clk 0:03:40]} 20. Rxd3 {[%clk 0:04:07.9]} 20... Rfd8
{[%clk 0:03:38.6]} 21. Rad1 {[%clk 0:04:06.6]} 21... Rxd3 {[%clk 0:03:34.4]} 22.
Rxd3 {[%clk 0:04:06.5]} 22... Rc8 {[%clk 0:03:30.2]} 23. g3 {[%clk 0:04:03.8]}
23... h6 {[%clk 0:03:27.3]} 24. Rd7 {[%clk 0:04:02.3]} 24... a5 {[%clk
0:03:23.9]} 25. Rb7 {[%clk 0:04:01.1]} 25... Rc3 {[%clk 0:03:22.9]} 26. Rxb6
{[%clk 0:04:00.3]} 26... Rxa3 {[%clk 0:03:22]} 27. Ra6 {[%clk 0:04:00.2]} 27...
Ra1+ {[%clk 0:03:15.8]} 28. Kg2 {[%clk 0:04:00.1]} 28... a4 {[%clk 0:03:14.8]}
29. h4 {[%clk 0:03:58.3]} 29... Kf8 {[%clk 0:03:13.1]} 30. Ra7 {[%clk
0:03:57.4]} 30... g5 {[%clk 0:03:07.3]} 31. hxg5 {[%clk 0:03:55.7]} 31... hxg5
{[%clk 0:03:07.2]} 32. Kf3 {[%clk 0:03:54.8]} 32... Kg7 {[%clk 0:02:59.9]} 33.
Kg4 {[%clk 0:03:53.2]} 33... Kg6 {[%clk 0:02:58.4]} 34. f4 {[%clk 0:03:51.1]}
34... f5+ {[%clk 0:02:56.3]} 35. Kf3 {[%clk 0:03:49.8]} 35... g4+ {[%clk
0:02:55.2]} 36. Kf2 {[%clk 0:03:44.3]} 36... Ra2+ {[%clk 0:02:51.4]} 37. Ke1
{[%clk 0:03:41]} 37... a3 {[%clk 0:02:50.4]} 38. Ra6 {[%clk 0:03:39.6]} 38...
Kf6 {[%clk 0:02:48.8]} 39. Kf1 {[%clk 0:03:35.8]} 39... Ra1+ {[%clk 0:02:46.2]}
40. Ke2 {[%clk 0:03:34.4]} 40... a2 {[%clk 0:02:45.4]} 41. Kf2 {[%clk
0:03:30.2]} 41... Rh1 {[%clk 0:02:42.1]} 0-1

[Event "Live Chess"]
[Site "Chess.com"]
[Date "2023.05.20"]
[Round "-"]
[White "TDCMF"]
[Black "boilerboy1"]
[Result "0-1"]
[WhiteElo "362"]
[BlackElo "1081"]
[TimeControl "300"]
[EndTime "11:24:17 PDT"]
[Termination "boilerboy1 won by checkmate"]

1. e4 {[%clk 0:04:57.8]} 1... e5 {[%clk 0:04:58.3]} 2. Nf3 {[%clk 0:04:56.1]}
2... d6 {[%clk 0:04:56.8]} 3. Nc3 {[%clk 0:04:53.9]} 3... c6 {[%clk 0:04:55.2]}
4. d4 {[%clk 0:04:52.5]} 4... exd4 {[%clk 0:04:49.5]} 5. Qxd4 {[%clk 0:04:48.3]}
5... Nf6 {[%clk 0:04:48.7]} 6. Bf4 {[%clk 0:04:38.2]} 6... Be7 {[%clk
0:04:46.4]} 7. Bc4 {[%clk 0:04:28.9]} 7... O-O {[%clk 0:04:43.5]} 8. O-O-O
{[%clk 0:04:23.5]} 8... Bg4 {[%clk 0:04:26.5]} 9. Rhe1 {[%clk 0:04:01.1]} 9...
Bxf3 {[%clk 0:04:21.3]} 10. gxf3 {[%clk 0:03:59.7]} 10... Nh5 {[%clk 0:04:13.6]}
11. Bxd6 {[%clk 0:03:37.5]} 11... Bxd6 {[%clk 0:04:04.8]} 12. e5 {[%clk
0:03:31.6]} 12... Be7 {[%clk 0:03:52.2]} 13. Qg4 {[%clk 0:03:04.9]} 13... Bg5+
{[%clk 0:03:48.7]} 14. Kb1 {[%clk 0:02:54.3]} 14... Qe7 {[%clk 0:03:43.7]} 15.
Qxh5 {[%clk 0:02:39.4]} 15... g6 {[%clk 0:03:39.5]} 16. Qh3 {[%clk 0:02:20.3]}
16... h6 {[%clk 0:03:35.1]} 17. Qg3 {[%clk 0:01:54.4]} 17... Nd7 {[%clk
0:03:30]} 18. Rd4 {[%clk 0:01:28]} 18... h5 {[%clk 0:03:21.5]} 19. Red1 {[%clk
0:01:25.1]} 19... Nc5 {[%clk 0:03:15.6]} 20. Na4 {[%clk 0:01:17.9]} 20... b5
{[%clk 0:02:59.6]} 21. Nxc5 {[%clk 0:01:14.8]} 21... bxc4 {[%clk 0:02:55.2]} 22.
Rd7 {[%clk 0:01:13.2]} 22... Qxc5 {[%clk 0:02:48.7]} 23. Qxg5 {[%clk 0:01:08.3]}
23... Qxf2 {[%clk 0:02:43.7]} 24. Qe7 {[%clk 0:00:51.8]} 24... Qxf3 {[%clk
0:02:41.4]} 25. Rd8 {[%clk 0:00:48.4]} 25... Raxd8 {[%clk 0:02:35.6]} 26. Rxd8
{[%clk 0:00:46.3]} 26... Qh1+ {[%clk 0:02:28.9]} 27. Rd1 {[%clk 0:00:38.2]}
27... Qxd1# {[%clk 0:02:26.2]} 0-1